bitfinex-derivatives/quotes_ETHF0:USTF0_20251005
["timestamp","ask_amount","ask_price","bid_price","bid_amount"]
[1759685715153,5.01279918,4512.9,4512.8,3.1247]
[1759685715358,5.01279918,4512.9,4512.8,3.52344]
[1759685715555,5.01279918,4512.9,4512.8,3.1247]
[1759685715856,6.36099918,4512.9,4512.6,0.223]
[1759685716162,3.1504,4512.6,4512.5,0.00184387]
[1759685716553,3.3724,4512.6,4512.5,0.00184387]
[1759685716953,3.3724,4512.6,4512.5,2.17954387]
[1759685718757,3.1504,4512.6,4512.5,3.12654387]
[1759685718958,3.1504,4512.6,4512.5,0.00184387]
[1759685720159,3.1504,4512.6,4512.5,0.94814387]
[1759685720355,3.1504,4512.6,4512.5,2.24914387]
[1759685720561,3.1504,4512.6,4512.5,3.17094387]
[1759685720757,0.00279918,4512.9,4512.8,2.26684]
[1759685720962,0.00279918,4512.9,4512.5,8.75624387]
[1759685720963,1.3713,4512.8,4512.6,1.301]
[1759685721161,1.81639918,4512.9,4512.5,0.00184387]
[1759685721162,3.1849,4512.6,4512.5,0.00184387]
[1759685722358,3.4069,4512.6,4512.5,0.00184387]
[1759685722561,8.4069,4512.6,4512.5,0.00184387]
[1759685722769,3.1849,4511.6,4511.5,3.7012]
[1759685723063,3.1849,4511.6,4511.5,3.8972]
[1759685723760,3.1849,4511.6,4511.5,3.8993472]
[1759685723965,3.1849,4511.6,4511.5,3.9253472]
[1759685724868,3.1849,4511.6,4511.5,3.3932472]
[1759685725366,3.1849,4511.6,4511.5,0.0021472]
[1759685725566,3.1849,4511.6,4510.7,1.301]
[1759685725567,3.58382,4510.8,4510.7,2.4383]
[1759685726267,3.58382,4510.8,4510.7,2.2473]
[1759685726571,3.58382,4510.8,4510.7,2.24936113]
[1759685727669,3.58382,4510.8,4510.7,3.17116113]
[1759685728671,3.1849,4510.8,4510.7,3.17116113]
[1759685729177,3.1849,4510.8,4510.7,1.30306113]
[1759685729466,3.1849,4510.8,4510.7,0.00206113]
[1759685730063,3.6748976,4510.8,4510.7,0.00206113]
[1759685730570,8.6748976,4510.8,4510.7,0.00206113]
[1759685731767,8.6748976,4510.8,4509.6,1.301]
[1759685731768,3.58391,4509.7,4509.6,1.301]
[1759685731965,1.3713,4509.6,4509.4,0.39904]
[1759685732163,3.1849,4509.6,4509.5,2.2473]
[1759685732667,3.18715127,4509.6,4509.5,2.24955677]
[1759685732971,3.18715127,4509.6,4509.5,2.64858677]
[1759685733174,3.18715127,4509.6,4509.5,2.23235677]
[1759685733873,3.18715127,4509.6,4509.5,0.00225677]
[1759685734172,2.29385127,4509.6,4509.5,3.13515677]
[1759685734373,0.00225127,4509.6,4509.5,3.69355677]
[1759685735670,3.14215127,4509.6,4509.5,3.13515677]
[1759685736175,0.93715127,4509.6,4509.5,3.69355677]
[1759685736672,6.57295127,4509.6,4509.5,0.00225677]
[1759685736869,6.57295127,4509.6,4509.5,0.93135677]
[1759685737069,6.57295127,4509.6,4509.5,0.00225677]
[1759685740875,6.57295127,4509.6,4508.5,0.5466]
[1759685740876,0.9349,4508.3,4508.2,3.1329]
[1759685741281,3.1399,4508.3,4508.2,3.1329]
[1759685741680,3.1399,4508.3,4508.2,0.9291]
[1759685741982,3.53904,4508.3,4508.2,0.00163474]
[1759685742979,3.53904,4508.3,4508.2,0.93073474]
[1759685743582,1.7868,4508.3,4508.2,3.13453474]
[1759685743775,3.2078,4508.5,4508.2,2.24207474]
[1759685743981,4.3657,4508.5,4508.4,3.1329]
[1759685744177,5.2176,4508.5,4508.4,3.1329]
[1759685744374,6.5707,4508.5,4508.4,3.1329]
[1759685744876,6.5707,4508.5,4508.2,0.40077474]
[1759685744877,2.68709,4508.9,4508.8,3.1329]
[1759685745077,3.53899,4508.9,4508.8,3.1329]
[1759685745282,3.76199,4508.9,4508.8,3.1329]
[1759685746780,3.1399,4508.3,4508.2,2.22233474]
[1759685747591,3.1399,4508.3,4508.2,3.13453474]
[1759685748497,1.7772,4508.8,4508.5,0.5211]
[1759685748686,1.5133,4508.7,4508.6,3.0748]
[1759685748991,3.7789,4508.7,4508.6,3.0748]
[1759685749181,3.2078,4509.1,4509.0,3.5959]
[1759685749381,3.2078,4509.1,4508.5,0.7441]
[1759685749382,0.8912,4508.6,4508.5,1.4295]
[1759685749587,1.7787,4508.6,4508.5,3.8189]
[1759685749792,0.8912,4508.6,4508.5,3.8189]
[1759685750690,0.39911,4508.7,4508.5,3.8189]
[1759685750892,4.322,4509.1,4509.0,3.5959]
[1759685751191,6.98667,4509.1,4509.0,3.0748]
[1759685751594,6.98667,4509.1,4509.0,0.9084]
[1759685751890,6.98667,4509.1,4508.6,1.2604]
[1759685751891,3.5559,4508.7,4508.6,0.9084]
[1759685752095,3.5559,4508.7,4508.6,2.1688]
[1759685752892,3.5559,4508.7,4508.6,3.0748]
[1759685753994,1.29034,4508.3,4508.2,3.07643474]
[1759685754197,1.29034,4508.3,4508.2,3.29943474]
[1759685754800,0.8912,4508.3,4508.2,3.29943474]
[1759685754995,3.1568,4508.3,4508.2,3.07643474]
[1759685755193,3.1568,4508.3,4508.2,0.91003474]
[1759685755599,3.1568,4508.3,4508.2,3.07643474]
[1759685758696,1.7787,4508.3,4508.2,3.07643474]
[1759685759102,3.1568,4508.3,4508.2,3.07643474]
[1759685760007,0.39913,4508.4,4508.3,1.2604]
[1759685760208,4.05566202,4508.4,4508.3,3.0748]
[1759685761109,4.05566202,4508.4,4508.3,0.9084]
[1759685761608,4.05566202,4508.4,4508.3,2.1688]
[1759685762005,4.05566202,4508.4,4508.3,3.0748]
[1759685762212,2.67756202,4508.4,4508.3,3.0748]
[1759685762516,4.05566202,4508.4,4508.3,0.9084]
[1759685763903,2.67756202,4508.4,4508.2,0.00163474]
[1759685764107,3.65653202,4508.3,4508.2,2.17043474]
[1759685765513,3.65653202,4508.3,4508.2,0.91003474]
[1759685765716,3.65653202,4508.3,4508.2,2.17043474]
[1759685766409,3.65653202,4508.3,4508.2,3.07643474]
[1759685766907,3.65653202,4508.3,4508.2,2.17043474]
[1759685767108,1.87783202,4508.3,4508.2,3.07643474]
[1759685767316,0.49973202,4508.3,4508.2,3.07643474]
[1759685767818,1.39093202,4508.3,4508.2,3.07643474]
[1759685768412,2.27843202,4508.3,4508.2,3.07643474]
[1759685768713,3.65653202,4508.3,4508.2,2.17043474]
[1759685769015,3.65653202,4508.3,4508.2,3.07643474]
[1759685769219,1.39093202,4508.3,4508.2,3.07643474]
[1759685770015,0.49973202,4508.3,4508.2,8.07643474]
[1759685770213,0.49973202,4508.4,4508.2,6.81603474]
[1759685770516,0.49973202,4508.4,4508.3,3.2978]
[1759685770912,0.49973202,4508.4,4508.3,8.2978]
[1759685771116,0.39913,4508.5,4508.4,3.0748]
[1759685771308,0.90164014,4508.5,4508.4,3.0748]
[1759685771511,4.05844014,4508.5,4508.4,3.0748]
[1759685772022,7.26624014,4508.5,4508.4,3.0748]
[1759685772623,2.17784,4508.3,4508.2,0.91003474]
[1759685772814,4.05845014,4508.3,4508.2,0.91003474]
[1759685774320,4.05845014,4508.3,4508.2,2.17043474]
[1759685774524,4.05845014,4508.3,4508.2,0.00163474]
[1759685774724,4.07027,4508.0,4507.9,8.26e-06]
[1759685775024,8.00358014,4508.0,4507.9,8.26e-06]
[1759685775516,8.00358014,4508.0,4507.9,0.90840826]
[1759685775718,8.00358014,4508.0,4507.9,0.00268037]
[1759685776214,15.8698071,4508.0,4507.9,0.00268037]
[1759685777616,10.8698071,4508.0,4507.9,0.00268037]
[1759685783025,10.6468071,4508.0,4507.9,0.00268037]
[1759685783224,10.8698071,4508.0,4507.9,0.00268037]
[1759685783623,10.86682452,4508.0,4507.9,0.00268037]
[1759685785925,10.86682452,4508.0,4507.9,0.90258037]
[1759685786126,7.08712756,4508.0,4507.9,3.10128037]
[1759685786826,0.49952756,4508.0,4507.9,3.10128037]
[1759685788143,4.5341,4509.1,4509.0,2.3286]
[1759685788330,3.2078,4509.1,4509.0,3.657]
[1759685788628,1.72534,4509.5,4509.1,1.3284]
[1759685788830,3.21005127,4509.6,4509.1,1.3284]
[1759685788831,3.21005127,4509.6,4509.4,3.0986]
[1759685789034,3.21005127,4509.6,4509.5,3.657]
[1759685789933,0.00225127,4509.6,4509.5,3.657]
[1759685792930,3.2078,4510.1,4510.0,3.5324]
[1759685794030,0.39899,4510.0,4509.5,0.5584]
[1759685794338,3.45981,4509.7,4509.6,3.2252]
[1759685795531,3.0608,4509.7,4509.6,3.2252]
[1759685795727,1.7473,4509.7,4509.6,3.2252]
[1759685795934,0.8916,4509.7,4509.6,3.2252]
[1759685796335,3.21016389,4510.1,4510.0,2.2527]
[1759685796643,0.00236389,4510.1,4510.0,3.5324]
[1759685797631,0.00236389,4510.1,4510.0,3.7554]
[1759685798943,0.00236389,4510.1,4510.0,8.7554]
[1759685799132,0.00236389,4510.1,4510.0,8.5324]
[1759685799330,0.00236389,4510.1,4510.0,8.7554]
[1759685799536,3.2078,4510.8,4510.7,3.0022]
[1759685799736,3.2078,4510.8,4510.7,3.2252]
[1759685799937,3.2078,4510.8,4510.7,8.2252]
[1759685800443,3.20992,4510.8,4510.7,8.2252]
[1759685801443,0.00212,4510.8,4510.7,8.2252]
[1759685802341,0.00212,4510.8,4510.7,3.2252]
[1759685802938,3.06292,4510.8,4510.7,3.0022]
[1759685803239,3.0608,4510.4,4510.3,2.1467]
[1759685803442,6.2686,4510.4,4510.3,2.3697]
[1759685803742,6.2686,4510.4,4509.7,3.0022]
[1759685803743,0.8916,4509.8,4509.7,3.0022]
[1759685803941,0.8916,4509.8,4509.7,3.2252]
[1759685804337,3.2078,4510.4,4510.0,2.2527]
[1759685804644,4.0994,4510.4,4510.3,3.0022]
[1759685804838,4.0994,4510.4,4510.3,3.2252]
[1759685805237,4.0994,4510.4,4510.3,3.0022]
[1759685805238,6.2686,4510.4,4510.3,3.0022]
[1759685805434,0.00212,4510.8,4510.3,3.2252]
[1759685805744,0.00212,4510.8,4510.7,3.40113]
[1759685805944,0.00212,4510.8,4510.7,3.2252]
[1759685806239,0.89372,4510.8,4510.7,3.2252]
[1759685807135,0.89372,4510.8,4510.7,3.62413]
[1759685807333,0.00212,4510.8,4510.7,3.62413]
[1759685807540,0.00212,4510.8,4510.7,3.2252]
[1759685807736,0.00212,4510.8,4510.3,2.8883]
[1759685807737,1.7111,4510.4,4510.3,2.8883]
[1759685807943,3.0463,4510.4,4510.3,3.1113]
[1759685808138,3.0463,4509.9,4509.8,2.8883]
[1759685808332,3.0463,4509.9,4509.8,3.1113]
[1759685808537,3.4453,4509.9,4509.8,2.0524]
[1759685808743,3.4453,4509.9,4509.8,1.0377]
[1759685808940,3.4453,4509.9,4509.8,3.1113]
[1759685809440,3.4453,4509.9,4509.8,0.8147]
[1759685809748,3.0463,4509.7,4509.6,2.8883]
[1759685809936,3.0463,4509.7,4509.6,0.223]
[1759685810541,3.0463,4509.7,4509.6,2.2754]
[1759685810741,3.0463,4509.7,4509.6,3.1113]
[1759685811142,3.44535,4509.3,4509.2,0.8147]
[1759685811448,0.848,4509.1,4509.0,2.8079]
[1759685811755,0.848,4509.1,4509.0,3.1113]
[1759685811756,3.0463,4509.1,4509.0,3.1113]
[1759685812049,1.7111,4509.1,4509.0,3.6438]
[1759685814646,0.848,4509.1,4509.0,3.6438]
[1759685816249,3.0463,4509.1,4509.0,3.1113]
[1759685817844,3.2078,4509.2,4509.0,2.4061]
[1759685818153,1.7111,4509.2,4509.1,2.8883]
[1759685819152,0.39904,4509.5,4509.2,1.2377]
[1759685819449,1.24704,4509.5,4509.4,2.8883]
[1759685819850,2.58224,4509.5,4509.4,2.8883]
[1759685820152,3.44534,4509.5,4509.4,2.8883]
[1759685820347,3.44534,4509.5,4509.2,0.8147]
[1759685820348,0.39905,4509.3,4509.2,0.8147]
[1759685820652,2.11015,4509.3,4509.2,1.0377]
[1759685820848,3.44535,4509.3,4509.2,0.223]
[1759685821150,3.44535,4509.3,4509.2,3.1113]
[1759685821151,0.848,4509.3,4509.2,3.1113]
[1759685823954,0.39904,4509.4,4509.3,1.2377]
[1759685824251,1.24704,4509.4,4509.3,2.8883]
[1759685824450,4.543,4509.7,4509.5,0.5325]
[1759685824451,3.2078,4509.7,4509.5,0.5325]
[1759685824754,3.2078,4509.7,4509.6,2.8883]
[1759685825147,0.848,4509.7,4509.6,1.6506]
[1759685825451,0.848,4509.7,4509.6,2.8883]
[1759685825854,0.39901,4509.8,4509.6,2.8883]
[1759685826052,0.223,4510.0,4509.4,1.2377]
[1759685826053,0.7302,4510.0,4509.4,1.2377]
[1759685826354,0.7302,4510.0,4509.3,0.8147]
[1759685826355,3.44532,4509.6,4509.5,1.6506]
[1759685826553,1.24707,4509.1,4509.0,2.1831]
[1759685826754,2.58227,4509.1,4509.0,3.6438]
[1759685826951,3.44537,4509.1,4509.0,3.6438]
[1759685827148,1.24707,4509.1,4509.0,3.6438]
[1759685827348,1.3352,4509.5,4509.0,3.6438]
[1759685827349,0.39905,4509.3,4509.2,2.8883]
[1759685827657,0.39905,4509.3,4509.2,3.1113]
[1759685828259,1.24705,4509.3,4509.2,3.1113]
[1759685828648,2.11015,4509.3,4509.2,3.1113]
[1759685828963,2.11019,4508.9,4508.8,2.8883]
[1759685829257,3.44539,4508.9,4508.8,3.1113]
[1759685831354,3.2078,4509.2,4508.8,3.1113]
[1759685831655,3.2078,4509.7,4509.1,1.6506]
[1759685831951,0.89693279,4509.6,4509.5,3.4208]
[1759685832158,0.89693279,4509.6,4509.5,3.6438]
[1759685832357,0.39902,4509.6,4509.5,3.6438]
[1759685833356,0.89736888,4509.6,4509.5,3.6438]
[1759685833669,1.24707,4509.1,4509.0,3.4208]
[1759685833959,3.44537,4509.1,4509.0,3.1113]
[1759685834156,6.65317,4509.1,4509.0,3.1113]
[1759685834864,6.65317,4509.1,4509.0,1.0377]
[1759685835061,6.65317,4509.1,4509.0,2.2754]
[1759685836862,7.15168849,4509.1,4509.0,2.2754]
[1759685838961,5.81648849,4509.1,4509.0,3.6369]
[1759685839154,2.60868849,4509.1,4509.0,3.6369]
[1759685840563,0.49851849,4509.1,4509.0,3.6369]
[1759685840857,3.2078,4509.6,4509.3,2.9795]
[1759685841160,3.2078,4509.6,4509.0,0.7486]
[1759685841161,3.2078,4509.6,4509.5,3.5051]
[1759685841360,3.70689648,4509.6,4509.5,3.7281]
[1759685842157,0.49909648,4509.6,4509.5,3.7281]
[1759685842357,0.39901,4509.8,4509.7,1.6801]
[1759685842558,0.8953659,4509.8,4509.7,3.2025]
[1759685842760,0.4963559,4509.8,4509.7,3.2025]
[1759685843462,0.39899,4510.0,4509.9,2.9795]
[1759685843660,0.49616766,4510.0,4509.9,3.2025]
[1759685843869,6.52363,4510.7,4510.6,2.9795]
[1759685844061,7.01983539,4510.7,4510.6,3.2025]
[1759685844267,4.10293539,4510.7,4510.6,3.2025]
[1759685844965,0.39898,4510.1,4510.0,0.5256]
[1759685845171,0.8553,4510.1,4510.0,3.7281]
[1759685845467,0.39898,4510.2,4510.0,2.4287]
[1759685845666,0.8553,4510.2,4510.1,2.9795]
[1759685846065,0.39897,4510.3,4510.2,1.2994]
[1759685846258,0.39897,4510.3,4510.2,3.2025]
[1759685846861,3.60673,4510.7,4510.6,2.9795]
[1759685847068,3.60673,4510.7,4510.6,3.2025]
[1759685848468,6.52363,4510.7,4510.6,3.2025]
[1759685848866,3.60673,4510.7,4510.6,3.2025]
[1759685849467,3.2078,4510.7,4510.6,3.2025]
[1759685850066,0.40104,4510.8,4510.6,3.2025]
[1759685850268,0.00212,4510.8,4510.7,2.9795]
[1759685858372,2.88612,4510.8,4510.7,2.1223]
[1759685858675,2.47117,4510.2,4510.1,2.9993]
[1759685858971,2.47117,4510.2,4510.1,3.2223]
[1759685859468,3.28297,4510.2,4510.1,3.2223]
[1759685861072,1.6245,4510.2,4510.1,3.2223]
[1759685861674,3.2078,4510.7,4510.6,2.9993]
[1759685861868,4.0205,4510.7,4510.6,3.2223]
[1759685862066,3.2078,4510.7,4510.6,3.2223]
[1759685863080,4.0205,4510.7,4510.6,3.2223]
[1759685863280,6.0918,4510.7,4510.6,3.2223]
[1759685864572,0.00212,4510.8,4510.7,3.39823]
[1759685864774,2.88612,4510.8,4510.7,3.2223]
[1759685865074,1.6245,4510.2,4510.1,2.9993]
[1759685865276,3.28297,4510.2,4510.1,3.2223]
[1759685865476,2.02347,4510.2,4510.1,3.2223]
[1759685865877,1.21167,4510.2,4510.1,3.2223]
[1759685866372,0.39897,4510.2,4510.1,3.2223]
[1759685866567,0.39896,4510.4,4510.3,1.6906]
[1759685866773,3.2078,4510.6,4510.5,3.5046]
[1759685866975,3.2078,4510.6,4510.5,3.7276]
[1759685867176,0.00212,4510.8,4510.6,0.39894]
[1759685867476,0.00212,4510.8,4510.7,3.2223]
[1759685867676,0.00212,4510.8,4510.7,2.9993]
[1759685867878,0.00212,4510.8,4510.7,3.2223]
[1759685871179,0.80792,4510.8,4510.7,2.9993]
[1759685871481,0.00212,4510.8,4510.7,3.2223]
[1759685880985,0.8058,4511.9,4511.8,1.609]
[1759685881186,0.49639377,4511.9,4511.8,3.1113]
[1759685881488,3.41419377,4511.9,4511.8,3.1113]
[1759685882187,3.41654365,4511.9,4511.8,3.11357247]
[1759685882784,2.11804365,4511.9,4511.8,3.11357247]
[1759685883180,8.41654365,4511.9,4511.8,0.00227247]
[1759685883386,3.8217,4511.0,4510.9,0.8113]
[1759685883590,3.3167,4511.0,4510.9,2.3136]
[1759685883782,3.3167,4511.0,4510.9,3.1113]
[1759685884290,0.8058,4511.0,4510.9,3.11368158]
[1759685884491,2.1043,4511.3,4511.2,2.8883]
[1759685884688,2.59717047,4511.3,4511.2,3.1113]
[1759685885386,0.39886,4511.5,4511.2,1.832]
[1759685885590,3.31896988,4511.9,4511.8,1.609]
[1759685885790,3.81181919,4511.9,4511.8,3.1113]
[1759685888291,3.81181919,4511.9,4511.2,3.2078]
[1759685888292,3.31669,4511.1,4511.0,3.3762]
[1759685888586,3.31669,4511.1,4511.0,3.5992]
[1759685889188,1.6193,4511.1,4511.0,3.5992]
[1759685889583,3.2078,4511.7,4511.0,2.3199]
[1759685889791,3.2078,4511.7,4511.6,3.28715]
[1759685890092,0.8058,4511.8,4511.7,2.8883]
[1759685890682,0.00234988,4511.9,4511.8,1.2793]
[1759685890993,0.00234988,4511.9,4511.8,3.1113]
[1759685891594,0.00234988,4511.9,4511.8,2.8883]
[1759685891595,2.92014988,4511.9,4511.8,2.8883]
[1759685891793,2.92014988,4511.9,4511.8,3.1113]
[1759685892186,0.80814988,4511.9,4511.8,3.1113]
[1759685892387,0.00234988,4511.9,4511.8,3.51013]
[1759685892786,0.00234988,4511.9,4511.8,3.28713]
[1759685892990,0.00234988,4511.9,4511.8,3.51013]
[1759685894191,0.00234988,4511.9,4511.8,6.71793]
[1759685894794,4.0136,4512.8,4512.7,2.8883]
[1759685895093,5.8042359,4512.8,4512.7,3.1113]
[1759685895293,5.3121,4512.8,4512.7,3.1113]
[1759685895793,5.31450018,4512.8,4512.7,3.1113]
[1759685895989,4.01600018,4512.8,4512.7,3.1113]
[1759685896189,3.21020018,4512.8,4512.7,3.1113]
[1759685897790,0.80820018,4512.8,4512.7,3.1113]
[1759685898498,0.00240018,4512.8,4512.7,3.1113]
[1759685899691,0.77870018,4512.8,4512.7,3.1113]
[1759685899891,0.77870018,4512.8,4511.5,1.48503]
[1759685899892,0.7763,4512.5,4512.4,1.243]
[1759685900101,3.62887,4512.5,4512.4,2.2824]
[1759685900497,3.15747,4512.5,4512.4,2.2824]
[1759685900792,2.33547,4512.5,4512.4,3.0878]
[1759685900997,3.15747,4512.5,4512.4,3.0878]
[1759685901192,0.7763,4512.5,4512.4,3.0878]
[1759685902397,0.00240018,4512.8,4512.7,2.8648]
[1759685902598,0.00240018,4512.8,4512.7,3.0878]
[1759685904896,2.76110018,4512.8,4512.7,2.8648]
[1759685905204,2.7587,4512.7,4512.6,0.8164]
[1759685905405,2.7587,4512.7,4512.6,2.2824]
[1759685905703,2.7587,4512.7,4512.6,3.0878]
[1759685907096,1.5983,4512.7,4512.6,3.0878]
[1759685907704,0.7763,4512.7,4512.6,3.0878]
[1759685908203,1.5983,4512.7,4512.6,3.0878]
[1759685908802,0.7763,4512.7,4512.6,3.0878]
[1759685909997,0.822,4512.2,4512.1,2.8648]
[1759685910206,2.7587,4512.2,4512.1,3.0878]
[1759685910402,1.5983,4512.2,4512.1,3.0878]
[1759685912108,1.5983,4512.2,4512.1,2.8648]
[1759685912305,1.5983,4512.2,4512.1,3.0878]
[1759685912907,0.00240018,4512.8,4512.7,3.21545]
[1759685913094,0.00240018,4512.8,4512.7,6.64625]
[1759685914908,0.81450018,4512.8,4512.7,6.64625]
[1759685915109,0.00240018,4512.8,4512.7,6.64625]
[1759685916410,2.007,4514.6,4514.5,0.8147]
[1759685916706,0.3986,4514.4,4514.0,1.2306]
[1759685916910,0.8121,4513.4,4513.3,3.2078]
[1759685917102,3.1867,4513.4,4512.7,3.2078]
[1759685917410,0.00229638,4513.4,4513.2,0.8147]
[1759685917713,2.788,4513.3,4513.2,2.8167]
[1759685917905,2.788,4513.3,4513.2,3.0397]
[1759685919507,1.5931,4513.3,4513.2,3.0397]
[1759685919907,2.788,4513.3,4513.2,3.0397]
[1759685920511,0.8121,4513.3,4513.2,3.0397]
[1759685921012,0.00229638,4513.4,4513.3,0.3987]
[1759685921314,0.00229638,4513.4,4513.3,3.2154]
[1759685921708,0.00229638,4513.4,4513.3,2.8167]
[1759685922312,0.81439638,4513.4,4513.3,2.8167]
[1759685922809,0.00229638,4513.4,4513.3,2.8167]
[1759685927517,0.00229638,4513.4,4513.3,3.2154]
[1759685927728,0.00229638,4513.4,4513.3,3.4384]
[1759685928717,3.2078,4514.2,4514.0,0.5089]
[1759685928918,1.204,4514.6,4514.1,1.99222]
[1759685929118,3.24282676,4514.5,4514.4,1.5936]
[1759685929314,3.24282676,4514.5,4514.4,3.0609]
[1759685929522,2.03882676,4514.5,4514.4,3.0609]
[1759685929722,1.26426239,4514.5,4514.4,3.0609]
[1759685930522,0.77253563,4514.5,4514.4,3.0609]
[1759685932211,0.00233563,4514.5,4514.4,3.0609]
[1759685934718,2.75343563,4514.5,4514.4,2.0432]
[1759685934911,3.22563563,4514.5,4514.4,1.0219]
[1759685935621,2.75343563,4514.5,4514.4,3.0609]
[1759685935816,2.75343563,4514.5,4513.2,36.50032354]
[1759685935817,0.7702,4513.7,4513.6,1.2443]
[1759685936124,1.204,4513.6,4513.5,2.1025]
[1759685936315,4.7549,4514.2,4514.1,0.7989]
[1759685936523,4.7549,4514.2,4514.1,3.0609]
[1759685936921,5.9589,4514.2,4514.1,3.0609]
[1759685937221,5.9589,4514.2,4514.1,2.8379]
[1759685937418,5.9589,4514.2,4514.1,2.2662]
[1759685937623,2.7511,4514.2,4514.1,3.0609]
[1759685939023,2.7511,4514.2,4514.1,0.223]
[1759685939224,0.7702,4513.7,4513.6,2.8379]
[1759685939418,1.60263,4514.1,4513.7,1.2443]
[1759685939625,2.7511,4514.1,4514.0,2.8379]
[1759685939822,2.7511,4514.1,4514.0,3.5698]
[1759685940427,1.5471,4514.1,4514.0,3.5698]
[1759685940622,0.7702,4514.1,4514.0,3.5698]
[1759685942331,1.9742,4514.1,4514.0,3.5698]
[1759685942528,2.7511,4514.1,4514.0,3.5698]
[1759685943229,0.7702,4514.1,4514.0,3.5698]
[1759685943429,0.7702,4514.2,4514.1,2.8379]
[1759685944723,0.77253563,4514.5,4514.4,0.7989]
[1759685945036,0.00233563,4514.5,4514.4,3.0609]
[1759685945745,1.54943563,4514.5,4514.1,1.2443]
[1759685945924,0.39865,4513.8,4513.7,3.2078]
[1759685946128,1.5471,4513.8,4512.9,1.2443]
[1759685946328,1.94582,4513.1,4513.0,2.0432]
[1759685946629,3.14982,4513.1,4513.0,2.2672]
[1759685947134,3.14982,4513.1,4513.0,2.0432]
[1759685947431,2.7511,4513.1,4513.0,2.2672]
[1759685947735,0.7702,4513.1,4513.0,3.5708]
[1759685948932,0.39869,4513.4,4513.0,2.3265]
[1759685949234,1.16889,4513.4,4513.3,2.8379]
[1759685949530,3.14979,4513.4,4513.3,3.0619]
[1759685950530,2.37959,4513.4,4513.3,3.0619]
[1759685950736,1.16889,4513.4,4513.3,3.0619]
[1759685950931,0.7702,4513.4,4513.3,3.0619]
[1759685951133,2.7511,4513.4,4513.3,3.0619]
[1759685955033,3.4318,4514.2,4514.1,2.0432]
[1759685955034,6.1829,4514.2,4514.1,2.0432]
[1759685955237,7.06942867,4514.2,4514.1,2.0432]
[1759685956023,7.06942867,4514.2,4514.1,0.7989]
[1759685956427,7.06942867,4514.2,4514.1,2.8379]
[1759685956730,5.64142867,4514.2,4514.1,2.8379]
[1759685956931,0.3986,4514.4,4514.1,2.8379]
[1759685957227,0.3986,4514.4,4514.3,2.8379]
[1759685957228,1.1688,4514.4,4514.3,2.8379]
[1759685957824,1.9457,4514.4,4514.3,2.8379]
[1759685958030,3.092,4514.4,4514.3,0.7989]
[1759685958236,3.092,4514.4,4514.3,1.0229]
[1759685958430,3.092,4514.4,4514.3,2.1936]
[1759685958739,2.6934,4514.4,4514.3,3.0039]
[1759685959830,0.7702,4514.4,4514.3,3.0039]
[1759685963237,1.25826861,4514.4,4514.3,3.0039]
[1759685963434,0.7702,4514.4,4514.3,3.0039]
[1759685963837,2.7408,4514.4,4514.3,3.0039]
[1759685964133,3.22886616,4514.4,4514.3,3.0039]
[1759685967237,2.08256616,4514.4,4514.3,3.0039]
[1759685968039,0.48806616,4514.4,4514.3,3.0039]
[1759685969538,0.00233563,4514.5,4514.4,3.1587]
[1759685969936,0.00233563,4514.5,4514.4,2.7601]
[1759685970540,0.77673563,4514.5,4514.4,2.7601]
[1759685971936,0.77673563,4514.5,4514.4,2.9841]
[1759685972131,1.17532563,4514.5,4514.4,2.9841]
[1759685973343,0.00233563,4514.5,4514.4,2.7601]
[1759685973645,0.00233563,4514.5,4514.4,2.9841]
[1759685974142,0.77893563,4514.5,4514.4,2.9841]
[1759685974342,0.00233563,4514.5,4514.4,2.9841]
[1759685975767,0.00233563,4514.5,4514.4,2.7601]
[1759685975953,0.00233563,4514.5,4514.4,2.9841]
[1759685985754,2.72743563,4514.5,4514.4,1.9498]
[1759685985944,0.7766,4513.6,4513.5,5.7306]
[1759685986144,2.7251,4513.6,4513.5,6.7433]
[1759685986354,1.5874,4513.6,4513.5,6.5203]
[1759685986547,0.7766,4513.6,4513.5,6.7443]
[1759685987051,3.12377,4513.6,4513.5,3.0276]
[1759685987652,2.7251,4513.6,4513.5,3.0276]
[1759685987855,0.811,4513.7,4513.6,2.719]
[1759685988741,3.2078,4514.1,4514.0,3.2063]
[1759685988949,3.2078,4514.1,4514.0,3.4303]
[1759685995653,1.15233563,4514.5,4514.1,1.50783]
[1759685995852,1.57613563,4514.5,4514.4,2.719]
[1759685996053,0.811,4514.0,4513.9,4.0108]
[1759685996248,3.1785,4514.0,4513.6,1.1092]
[1759685996454,2.42714,4514.0,4513.9,1.9122]
[1759685996757,2.42714,4514.0,4513.9,2.1362]
[1759685996956,3.57714,4514.0,4513.9,2.1362]
[1759685997258,3.1785,4514.0,4513.9,2.1362]
[1759685997458,2.7238,4514.0,4513.9,2.1362]
[1759685997859,2.7238,4514.0,4513.9,1.9122]
[1759685998058,2.7238,4514.0,4513.9,2.1362]
[1759685998251,2.7238,4514.0,4513.9,2.943]
[1759685999449,3.1785,4514.0,4513.9,0.224]
[1759685999650,3.1785,4514.0,4513.9,2.1362]
[1759685999856,0.811,4514.0,4513.9,2.943]
[1759686000255,2.7238,4514.0,4513.9,2.943]
[1759686001165,3.1785,4514.0,4513.9,2.1362]
[1759686001360,3.1785,4514.0,4513.3,2.719]
[1759686001361,2.7238,4513.4,4513.3,2.719]
[1759686001659,2.7238,4513.4,4513.3,2.942]
[1759686002063,2.7238,4513.4,4513.3,2.719]
[1759686002562,0.811,4513.1,4513.0,0.5089]
[1759686002863,0.811,4513.1,4513.0,2.3427]
[1759686003259,0.811,4513.1,4513.0,3.4519]
[1759686004662,2.7238,4513.7,4513.6,1.9122]
[1759686004963,2.7238,4513.7,4513.6,2.1362]